[Event "Modransky Cup 2025"]
[Site "Modra"]
[Date "2025.02.22"]
[Round "5.16"]
[White "Sekera, Timotej"]
[Black "Hrckova, Anna"]
[Result "0-1"]
[Annotator "NA"]
[ECO "C01"]
[WhiteElo "1802"]
[BlackElo "1655"]
[PlyCount "58"]
[EventDate "2025.02.20"]
[EventCountry "SVK"]
[SourceTitle "playchess.com"]
[Source "ChessBase"]
[SourceQuality "1"]
[TimeControl "5400+30"]

1. e4 {[%emt 0:00:09]} e6 {[%emt 0:00:03]} 2. d4 {[%emt 0:00:12]} d5 {[%emt 0:00:04]} 3. Nd2 {[%emt 0:00:16]} c5 {[%emt 0:00:05]} 4. exd5 {[%emt 0:00:09]} exd5 {[%emt 0:00:09]} 5. Ngf3 {[%emt 0:00:15]} Nf6 {[%emt 0:00:43]} 6. dxc5 {[%emt 0:01:39]} Bxc5 {[%emt 0:00:10]} 7. Bd3 {[%emt 0:00:11]} Nc6 {[%emt 0:01:09]} 8. O-O {[%emt 0:00:29]} O-O {[%emt 0:00:06]} 9. Nb3 {[%emt 0:00:43]} Bb6 {[%emt 0:00:38]} 10. c3 {[%emt 0:01:01]} Bg4 {[%emt 0:02:11]} 11. h3 {[%emt 0:01:28]} Bh5 {[%emt 0:00:06]} 12. Bg5 {[%emt 0:01:15]} h6 {[%emt 0:02:30]} 13. Bh4 {[%emt 0:00:14]} Qd6 {[%emt 0:03:18]} 14. g4 {[%emt 0:03:55]} Nxg4 {[%emt 0:02:40]} 15. hxg4 {[%emt 0:00:12]} Bxg4 {[%emt 0:00:04]} 16. Be2 {[%emt 0:03:11]} Qf4 {[%emt 0:00:40]} 17. Qd2 {[%emt 0:01:32]} Qe4 {[%emt 0:11:58]} 18. Nbd4 {[%emt 0:13:15]} Nxd4 {[%emt 0:01:54]} 19. Nxd4 {[%emt 0:00:25]} Bxe2 {[%emt 0:00:57]} 20. Qxe2 {[%emt 0:00:31]} Qxh4 {[%emt 0:00:08]} 21. Rad1 {[%emt 0:03:18]} Rfe8 {[%emt 0:01:08]} 22. Qf3 {[%emt 0:00:29]} Re5 {[%emt 0:02:13]} 23. Nf5 {[%emt 0:01:00]} Qg5+ {[%emt 0:05:25]} 24. Ng3 {[%emt 0:00:10]} Rae8 {[%emt 0:03:34]} 25. Rd3 {[%emt 0:02:20]} h5 {[%emt 0:05:35]} 26. Kh1 {[%emt 0:05:45]} h4 {[%emt 0:03:29]} 27. Rg1 {[%emt 0:00:08]} hxg3 {[%emt 0:00:11]} 28. Rxg3 {[%emt 0:00:11]} Qh4+ {[%emt 0:00:16]} 29. Kg2 {[%emt 0:00:38]} Re2 {[%emt 0:01:33]} 0-1

[Event "Modransky Cup 2025"]
[Site "Modra"]
[Date "2025.02.22"]
[Round "5.17"]
[White "Pikulik, Roman"]
[Black "Sara, J.S."]
[Result "1-0"]
[Annotator "NA"]
[ECO "C40"]
[WhiteElo "1595"]
[BlackElo "1774"]
[PlyCount "77"]
[EventDate "2025.02.20"]
[EventCountry "SVK"]
[SourceTitle "playchess.com"]
[Source "ChessBase"]
[SourceQuality "1"]
[TimeControl "5400+30"]

1. e4 {[%emt 0:00:09]} e5 {[%emt 0:00:50]} 2. Nf3 {[%emt 0:00:26]} f5 {[%emt 0:02:49]} 3. d3 {[%emt 0:00:26]} g6 {[%emt 0:01:07]} 4. Nxe5 {[%emt 0:02:45]} Qe7 {[%emt 0:00:56]} 5. Nf3 {[%emt 0:00:15]} Bg7 {[%emt 0:00:26]} 6. Be2 {[%emt 0:00:50]} fxe4 {[%emt 0:00:50]} 7. dxe4 {[%emt 0:00:22]} Qxe4 {[%emt 0:00:24]} 8. O-O {[%emt 0:00:20]} Ne7 {[%emt 0:00:51]} 9. Ng5 {[%emt 0:04:52]} Qc6 {[%emt 0:03:28]} 10. Re1 {[%emt 0:02:59]} O-O {[%emt 0:00:43]} 11. c3 {[%emt 0:01:51]} Nf5 {[%emt 0:03:26]} 12. Qb3+ {[%emt 0:07:15]} Kh8 {[%emt 0:01:54]} 13. Nf7+ {[%emt 0:00:42]} Rxf7 {[%emt 0:01:02]} 14. Qxf7 {[%emt 0:01:01]} h5 {[%emt 0:00:52]} 15. Qe8+ {[%emt 0:00:30]} Kh7 {[%emt 0:00:55]} 16. Bf3 {[%emt 0:00:24]} Qc5 {[%emt 0:01:22]} 17. Qxc8 {[%emt 0:02:59]} Nd6 {[%emt 0:00:40]} 18. Bxb7 {[%emt 0:01:07]} Nxc8 {[%emt 0:00:21]} 19. Bxa8 {[%emt 0:00:46]} Nd6 {[%emt 0:00:44]} 20. Bf3 {[%emt 0:00:41]} h4 {[%emt 0:01:58]} 21. Be3 {[%emt 0:01:01]} Qf5 {[%emt 0:01:38]} 22. h3 {[%emt 0:01:33]} Ne4 {[%emt 0:00:33]} 23. Nd2 {[%emt 0:01:30]} Nxd2 {[%emt 0:00:45]} 24. Bxd2 {[%emt 0:00:11]} Nc6 {[%emt 0:00:28]} 25. Be3 {[%emt 0:00:45]} Ne5 {[%emt 0:00:22]} 26. Be2 {[%emt 0:01:33]} Bf8 {[%emt 0:00:37]} 27. Rad1 {[%emt 0:05:05]} d6 {[%emt 0:01:27]} 28. Bxa7 {[%emt 0:01:56]} Bg7 {[%emt 0:01:18]} 29. Bd4 {[%emt 0:02:17]} Qf4 {[%emt 0:00:25]} 30. b4 {[%emt 0:05:25]} c5 {[%emt 0:02:32]} 31. Be3 {[%emt 0:04:24]} Qe4 {[%emt 0:01:05]} 32. b5 {[%emt 0:01:07]} Nc4 {[%emt 0:00:39]} 33. Bxc4 {[%emt 0:02:23]} d5 {[%emt 0:00:29]} 34. Bd4 {[%emt 0:02:02]} Qf4 {[%emt 0:00:52]} 35. Bxg7 {[%emt 0:01:25]} Kxg7 {[%emt 0:01:44]} 36. Bxd5 {[%emt 0:00:23]} g5 {[%emt 0:00:42]} 37. Be6 {[%emt 0:01:07]} Qb8 {[%emt 0:02:00]} 38. c4 {[%emt 0:00:26]} Qa7 {[%emt 0:00:29]} 39. Rd7+ {[%emt 0:00:29]} 1-0

[Event "Modransky Cup 2025"]
[Site "Modra"]
[Date "2025.02.22"]
[Round "5.18"]
[White "Novomeska, Karin"]
[Black "Soldan, Jan"]
[Result "1-0"]
[Annotator "NA"]
[ECO "E04"]
[WhiteElo "2006"]
[BlackElo "1756"]
[PlyCount "57"]
[EventDate "2025.02.20"]
[EventCountry "SVK"]
[SourceTitle "playchess.com"]
[Source "ChessBase"]
[SourceQuality "1"]
[TimeControl "5400+30"]

1. d4 {[%emt 0:00:06]} d5 {[%emt 0:00:05]} 2. c4 {[%emt 0:00:08]} e6 {[%emt 0:00:08]} 3. Nf3 {[%emt 0:00:04]} Nf6 {[%emt 0:00:29]} 4. g3 {[%emt 0:00:02]} dxc4 {[%emt 0:00:27]} 5. Bg2 {[%emt 0:00:16]} c5 {[%emt 0:01:30]} 6. O-O {[%emt 0:00:25]} Nc6 {[%emt 0:01:01]} 7. Be3 {[%emt 0:15:44]} Nd5 {[%emt 0:03:42]} 8. Na3 {[%emt 0:01:11]} Nxe3 {[%emt 0:16:35]} 9. fxe3 {[%emt 0:00:03]} cxd4 {[%emt 0:01:24]} 10. Nxd4 {[%emt 0:03:46]} Nxd4 {[%emt 0:02:06]} 11. exd4 {[%emt 0:01:01]} Bxa3 {[%emt 0:00:56]} 12. Qa4+ {[%emt 0:07:17]} b5 {[%emt 0:02:22]} 13. Qxb5+ {[%emt 0:01:39]} Bd7 {[%emt 0:00:38]} 14. Qh5 {[%emt 0:00:28]} g6 {[%emt 0:00:58]} 15. Qe5 {[%emt 0:01:41]} O-O {[%emt 0:03:27]} 16. Bxa8 {[%emt 0:00:51]} Bxb2 {[%emt 0:01:30]} 17. Rab1 {[%emt 0:00:02]} Qxa8 {[%emt 0:00:50]} 18. Rxb2 {[%emt 0:00:14]} Bc6 {[%emt 0:01:34]} 19. Rf4 {[%emt 0:00:59]} c3 {[%emt 0:04:57]} 20. Rc2 {[%emt 0:00:48]} Rb8 {[%emt 0:02:49]} 21. Rxc3 {[%emt 0:02:58]} Bh1 {[%emt 0:02:18]} 22. e4 {[%emt 0:01:15]} Rb1+ {[%emt 0:00:14]} 23. Kf2 {[%emt 0:01:46]} Qb7 {[%emt 0:06:37]} 24. Qc5 {[%emt 0:03:32]} Qb2+ {[%emt 0:05:48]} 25. Rc2 {[%emt 0:00:52]} Qa1 {[%emt 0:00:35]} 26. Qc8+ {[%emt 0:03:06]} Kg7 {[%emt 0:00:15]} 27. Rxf7+ {[%emt 0:00:30]} Kh6 {[%emt 0:06:33]} 28. Qf8+ {[%emt 0:00:19]} Kg5 {[%emt 0:00:40]} 29. Qe7+ {[%emt 0:00:07]} 1-0

[Event "Modransky Cup 2025"]
[Site "Modra"]
[Date "2025.02.22"]
[Round "5.19"]
[White "Grom, Stanislav"]
[Black "Chojnacki, Kevin"]
[Result "1-0"]
[Annotator "NA"]
[ECO "A45"]
[WhiteElo "1846"]
[BlackElo "1643"]
[PlyCount "61"]
[EventDate "2025.02.20"]
[EventCountry "SVK"]
[SourceTitle "playchess.com"]
[Source "ChessBase"]
[SourceQuality "1"]
[TimeControl "5400+30"]

1. d4 {[%emt 0:00:52]} Nf6 {[%emt 0:00:07]} 2. Bf4 {[%emt 0:00:12]} c5 {[%emt 0:00:51]} 3. c3 {[%emt 0:00:08]} cxd4 {[%emt 0:01:23]} 4. cxd4 {[%emt 0:00:12]} d6 {[%emt 0:00:55]} 5. Nf3 {[%emt 0:00:16]} g6 {[%emt 0:00:13]} 6. Nc3 {[%emt 0:00:17]} Bg7 {[%emt 0:00:06]} 7. e4 {[%emt 0:00:24]} a6 {[%emt 0:01:47]} 8. Be2 {[%emt 0:00:09]} b5 {[%emt 0:00:05]} 9. a3 {[%emt 0:01:23]} Bb7 {[%emt 0:00:31]} 10. d5 {[%emt 0:00:54]} O-O {[%emt 0:00:30]} 11. O-O {[%emt 0:00:07]} Nh5 {[%emt 0:00:08]} 12. Be3 {[%emt 0:01:24]} Nd7 {[%emt 0:00:02]} 13. Rc1 {[%emt 0:01:34]} Rc8 {[%emt 0:00:34]} 14. Nd4 {[%emt 0:06:12]} Nhf6 {[%emt 0:01:22]} 15. b4 {[%emt 0:06:24]} Rxc3 {[%emt 0:00:50]} 16. Rxc3 {[%emt 0:02:34]} Nxe4 {[%emt 0:00:02]} 17. Rc2 {[%emt 0:02:11]} Bxd5 {[%emt 0:00:33]} 18. Nc6 {[%emt 0:01:54]} Bxc6 {[%emt 0:01:24]} 19. Rxc6 {[%emt 0:01:35]} Nc3 {[%emt 0:01:27]} 20. Qc2 {[%emt 0:02:25]} Nxe2+ {[%emt 0:02:36]} 21. Qxe2 {[%emt 0:00:02]} Nb8 {[%emt 0:01:39]} 22. Bb6 {[%emt 0:02:21]} Qd7 {[%emt 0:00:03]} 23. Rc7 {[%emt 0:00:46]} Qf5 {[%emt 0:02:43]} 24. Rxe7 {[%emt 0:02:53]} Be5 {[%emt 0:01:40]} 25. Rd1 {[%emt 0:03:26]} Qf6 {[%emt 0:03:59]} 26. Ra7 {[%emt 0:01:27]} d5 {[%emt 0:00:29]} 27. Bc5 {[%emt 0:04:07]} Re8 {[%emt 0:00:21]} 28. Qa2 {[%emt 0:01:22]} d4 {[%emt 0:03:11]} 29. g3 {[%emt 0:02:26]} Nc6 {[%emt 0:06:10]} 30. Rxa6 {[%emt 0:03:32]} Nxb4 {[%emt 0:00:32]} 31. axb4 {[%emt 0:00:28]} 1-0

[Event "Modransky Cup 2025"]
[Site "Modra"]
[Date "2025.02.22"]
[Round "5.20"]
[White "Vorsilka, Jiri"]
[Black "Certik, Jaroslav"]
[Result "1-0"]
[Annotator "NA"]
[ECO "D00"]
[WhiteElo "1653"]
[BlackElo "1579"]
[PlyCount "63"]
[EventDate "2025.02.20"]
[EventCountry "SVK"]
[SourceTitle "playchess.com"]
[Source "ChessBase"]
[SourceQuality "1"]
[TimeControl "5400+30"]

1. d4 {[%emt 0:00:04]} d5 {[%emt 0:01:01]} 2. Nc3 {[%emt 0:00:09]} Nf6 {[%emt 0:00:48]} 3. Bf4 {[%emt 0:00:12]} Bf5 {[%emt 0:02:41]} 4. f3 {[%emt 0:00:11]} e6 {[%emt 0:02:50]} 5. g4 {[%emt 0:00:13]} Bg6 {[%emt 0:03:38]} 6. h4 {[%emt 0:00:11]} h6 {[%emt 0:09:58]} 7. e3 {[%emt 0:00:19]} Bb4 {[%emt 0:03:44]} 8. Bd3 {[%emt 0:00:52]} Bxd3 {[%emt 0:04:32]} 9. Qxd3 {[%emt 0:00:15]} Nc6 {[%emt 0:05:11]} 10. Nge2 {[%emt 0:00:51]} Qe7 {[%emt 0:05:36]} 11. Kf2 {[%emt 0:02:04]} O-O-O {[%emt 0:02:15]} 12. a3 {[%emt 0:00:35]} Bd6 {[%emt 0:03:06]} 13. Bxd6 {[%emt 0:01:20]} Qxd6 {[%emt 0:01:38]} 14. Nb5 {[%emt 0:00:16]} Qe7 {[%emt 0:01:49]} 15. c4 {[%emt 0:00:43]} g5 {[%emt 0:01:51]} 16. cxd5 {[%emt 0:03:27]} Rxd5 {[%emt 0:04:49]} 17. e4 {[%emt 0:00:53]} Rdd8 {[%emt 0:04:31]} 18. h5 {[%emt 0:01:05]} Kb8 {[%emt 0:04:50]} 19. b4 {[%emt 0:01:58]} Ne5 {[%emt 0:04:03]} 20. Qc2 {[%emt 0:00:58]} Nfxg4+ {[%emt 0:02:58]} 21. Kg3 {[%emt 0:03:25]} Qf6 {[%emt 0:07:05]} 22. Qxc7+ {[%emt 0:01:45]} Ka8 {[%emt 0:00:16]} 23. dxe5 {[%emt 0:00:41]} Nxe5 {[%emt 0:01:16]} 24. Nbd4 {[%emt 0:07:23]} Nxf3 {[%emt 0:04:55]} 25. Nxf3 {[%emt 0:01:11]} Rd3 {[%emt 0:00:49]} 26. Rhf1 {[%emt 0:00:24]} Rg8 {[%emt 0:01:06]} 27. Rad1 {[%emt 0:00:56]} g4 {[%emt 0:05:58]} 28. Rxd3 {[%emt 0:01:32]} gxf3+ {[%emt 0:00:15]} 29. Kh3 {[%emt 0:00:13]} Qg5 {[%emt 0:01:30]} 30. Qg3 {[%emt 0:01:05]} Qxh5+ {[%emt 0:01:51]} 31. Qh4 {[%emt 0:00:05]} fxe2 {[%emt 0:00:42]} 32. Re1 {[%emt 0:00:56]} 1-0

[Event "Modransky Cup 2025"]
[Site "Modra"]
[Date "2025.02.22"]
[Round "5.21"]
[White "Banas, Kamil"]
[Black "Chlupik Michal"]
[Result "1-0"]
[Annotator "NA"]
[ECO "C01"]
[WhiteElo "1651"]
[BlackElo "1355"]
[PlyCount "91"]
[EventDate "2025.02.20"]
[EventCountry "SVK"]
[SourceTitle "playchess.com"]
[Source "ChessBase"]
[SourceQuality "1"]
[TimeControl "5400+30"]

1. e4 {[%emt 0:12:44]} e6 {[%emt 0:01:00]} 2. d4 {[%emt 0:00:15]} d5 {[%emt 0:00:06]} 3. exd5 {[%emt 0:00:24]} exd5 {[%emt 0:00:08]} 4. Nf3 {[%emt 0:00:11]} Nf6 {[%emt 0:00:54]} 5. Be2 {[%emt 0:00:09]} c5 {[%emt 0:00:49]} 6. O-O {[%emt 0:03:00]} Bd6 {[%emt 0:01:43]} 7. dxc5 {[%emt 0:01:29]} Bxc5 {[%emt 0:00:08]} 8. Bb5+ {[%emt 0:01:26]} Nc6 {[%emt 0:02:24]} 9. Re1+ {[%emt 0:01:50]} Be6 {[%emt 0:00:29]} 10. Be3 {[%emt 0:09:35]} Qb6 {[%emt 0:03:19]} 11. Qd3 {[%emt 0:09:03]} O-O {[%emt 0:06:23]} 12. Bxc5 {[%emt 0:00:51]} Qxc5 {[%emt 0:00:21]} 13. Nc3 {[%emt 0:00:40]} Rad8 {[%emt 0:11:55]} 14. Rad1 {[%emt 0:00:41]} Rfe8 {[%emt 0:03:59]} 15. Ng5 {[%emt 0:07:38]} d4 {[%emt 0:17:26]} 16. Nce4 {[%emt 0:02:10]} Nxe4 {[%emt 0:02:24]} 17. Nxe4 {[%emt 0:03:28]} Qd5 {[%emt 0:01:26]} 18. Bxc6 {[%emt 0:11:44]} Qxc6 {[%emt 0:02:44]} 19. Qg3 {[%emt 0:04:05]} Qxc2 {[%emt 0:03:13]} 20. Nf6+ {[%emt 0:00:26]} Kf8 {[%emt 0:00:40]} 21. Nxe8 {[%emt 0:00:48]} Rxe8 {[%emt 0:00:07]} 22. Qd6+ {[%emt 0:00:20]} Re7 {[%emt 0:01:25]} 23. Qxd4 {[%emt 0:01:58]} b6 {[%emt 0:01:26]} 24. Qb4 {[%emt 0:01:00]} Qc7 {[%emt 0:01:20]} 25. Rd4 {[%emt 0:03:56]} Ke8 {[%emt 0:01:13]} 26. a3 {[%emt 0:02:35]} Qc5 {[%emt 0:01:23]} 27. Qxc5 {[%emt 0:01:37]} bxc5 {[%emt 0:00:06]} 28. Rd6 {[%emt 0:00:19]} c4 {[%emt 0:00:56]} 29. Red1 {[%emt 0:00:55]} f6 {[%emt 0:00:55]} 30. f3 {[%emt 0:02:15]} Kf7 {[%emt 0:00:15]} 31. Kf2 {[%emt 0:00:08]} Rb7 {[%emt 0:00:20]} 32. R1d2 {[%emt 0:01:11]} a5 {[%emt 0:04:03]} 33. Ra6 {[%emt 0:01:22]} Rb5 {[%emt 0:00:32]} 34. Ke3 {[%emt 0:01:46]} Rb3+ {[%emt 0:00:47]} 35. Kd4 {[%emt 0:00:22]} Rb5 {[%emt 0:03:58]} 36. Kc3 {[%emt 0:00:54]} Rb3+ {[%emt 0:01:03]} 37. Kc2 {[%emt 0:00:09]} Bf5+ {[%emt 0:00:22]} 38. Kc1 {[%emt 0:00:07]} c3 {[%emt 0:00:49]} 39. Rf2 {[%emt 0:01:11]} c2 {[%emt 0:01:31]} 40. Rxa5 {[%emt 0:01:15]} Bg6 {[%emt 0:00:11]} 41. Rxc2 {[%emt 0:00:35]} Bxc2 {[%emt 0:00:20]} 42. Kxc2 {[%emt 0:00:03]} Re3 {[%emt 0:00:10]} 43. Rd5 {[%emt 0:00:29]} Ke6 {[%emt 0:01:00]} 44. Rd3 {[%emt 0:00:21]} Re2+ {[%emt 0:00:26]} 45. Rd2 {[%emt 0:00:04]} Re5 {[%emt 0:00:04]} 46. b4 {[%emt 0:01:36]} 1-0

[Event "Modransky Cup 2025"]
[Site "Modra"]
[Date "2025.02.22"]
[Round "5.22"]
[White "Vondruska, Leos"]
[Black "Gonda, Jan"]
[Result "1/2-1/2"]
[Annotator "NA"]
[ECO "B80"]
[WhiteElo "1545"]
[BlackElo "1633"]
[PlyCount "67"]
[EventDate "2025.02.20"]
[EventCountry "SVK"]
[SourceTitle "playchess.com"]
[Source "ChessBase"]
[SourceQuality "1"]
[TimeControl "5400+30"]

1. e4 {[%emt 0:00:06]} c5 {[%emt 0:00:09]} 2. Nf3 {[%emt 0:00:11]} d6 {[%emt 0:00:08]} 3. d4 {[%emt 0:00:32]} cxd4 {[%emt 0:00:09]} 4. Nxd4 {[%emt 0:01:09]} e6 {[%emt 0:00:38]} 5. Nc3 {[%emt 0:02:07]} Nf6 {[%emt 0:00:18]} 6. Bb5+ {[%emt 0:02:29]} Nbd7 {[%emt 0:01:20]} 7. Qe2 {[%emt 0:02:21]} Be7 {[%emt 0:02:05]} 8. O-O {[%emt 0:01:28]} O-O {[%emt 0:00:05]} 9. Bd2 {[%emt 0:02:37]} a6 {[%emt 0:00:25]} 10. Bxd7 {[%emt 0:07:13]} Qxd7 {[%emt 0:00:40]} 11. Rad1 {[%emt 0:04:15]} Qc7 {[%emt 0:01:39]} 12. Nf3 {[%emt 0:03:50]} b5 {[%emt 0:00:48]} 13. Bf4 {[%emt 0:11:49]} Bb7 {[%emt 0:03:14]} 14. e5 {[%emt 0:03:46]} Nd5 {[%emt 0:03:16]} 15. Nxd5 {[%emt 0:06:36]} Bxd5 {[%emt 0:00:38]} 16. exd6 {[%emt 0:00:58]} Bxd6 {[%emt 0:00:21]} 17. Bxd6 {[%emt 0:00:52]} Qxd6 {[%emt 0:00:06]} 18. b3 {[%emt 0:02:23]} Qc7 {[%emt 0:04:14]} 19. Rd2 {[%emt 0:02:17]} Rac8 {[%emt 0:01:38]} 20. Rc1 {[%emt 0:01:56]} Qb7 {[%emt 0:03:42]} 21. h3 {[%emt 0:08:13]} Bxf3 {[%emt 0:15:26]} 22. Qxf3 {[%emt 0:03:29]} Qxf3 {[%emt 0:01:19]} 23. gxf3 {[%emt 0:00:14]} Rfd8 {[%emt 0:10:21]} 24. Rcd1 {[%emt 0:00:51]} Rxd2 {[%emt 0:00:11]} 25. Rxd2 {[%emt 0:01:07]} Kf8 {[%emt 0:00:33]} 26. Rd6 {[%emt 0:02:12]} Ra8 {[%emt 0:01:49]} 27. Rc6 {[%emt 0:05:21]} Ra7 {[%emt 0:03:49]} 28. a4 {[%emt 0:01:31]} bxa4 {[%emt 0:01:24]} 29. bxa4 {[%emt 0:00:23]} Ke7 {[%emt 0:00:17]} 30. Kf1 {[%emt 0:00:54]} Kd7 {[%emt 0:00:25]} 31. Rc3 {[%emt 0:02:08]} Rc7 {[%emt 0:06:31]} 32. Rd3+ {[%emt 0:00:15]} Kc6 {[%emt 0:00:32]} 33. Rb3 {[%emt 0:03:18]} Rb7 {[%emt 0:02:09]} 34. Rc3+ {[%emt 0:00:21]} 1/2-1/2